fUSD/lending_fUSD_20250101
["ID","MTS","AMOUNT","RATE_DAILY","PERIOD"]
[347364595,1735733456047,-500.0,0.00011232,2]
[347364596,1735733456055,-1057.49,0.00011232,2]
[347364597,1735733456064,-500.0,0.00011232,2]
[347364598,1735733456074,-500.0,0.00011232,2]
[347364599,1735733456083,-210.47041286,0.00011232,2]
[347364600,1735733456092,-500.0,0.00011232,2]
[347364601,1735733456101,-510.81,0.00011232,2]
[347364602,1735733456110,-3813.5,0.00011232,2]
[347364603,1735733456119,-697.79,0.00011232,2]
[347364604,1735733456128,-1358.23,0.00011232,2]
[347364605,1735733456137,-500.0,0.00011232,2]
[347364606,1735733456146,-500.0,0.00011232,2]
[347364607,1735733456156,-2594.5,0.00011232,2]
[347364608,1735733456166,-2553.16,0.00011232,2]
[347364609,1735733456175,-919.23,0.00011232,2]
[347364610,1735733456184,-2167.55,0.00011232,2]
[347364611,1735733456193,-2346.27,0.00011232,2]
[347364612,1735733456202,-1507.23,0.00011232,2]
[347364613,1735733456211,-12240.93,0.00011232,2]
[347364614,1735733456220,-2266.12,0.00011232,2]
[347364615,1735733456229,-2270.56,0.00011232,2]
[347364616,1735733456239,-2747.88,0.00011232,2]
[347364617,1735733456248,-500.0,0.00011232,2]
[347364618,1735733456257,-952.83,0.00011232,2]
[347364619,1735733456266,-926.89,0.00011232,2]
[347364620,1735733456276,-2436.39,0.00011232,2]
[347364621,1735733456285,-500.0,0.00011232,2]
[347364622,1735733456294,-6399.26,0.00011232,2]
[347364623,1735733456303,-636.98,0.00011232,2]
[347364624,1735733456313,-2701.49,0.00011232,2]
[347364625,1735733456322,-1421.44,0.00011232,2]
[347364626,1735733456331,-4065.13,0.00011232,2]
[347364627,1735733456340,-500.0,0.00011232,2]
[347364628,1735733456350,-500.0,0.00011232,2]
[347364629,1735733456359,-857.37,0.00011232,2]
[347364630,1735733456368,-500.0,0.00011232,2]
[347364631,1735733456377,-500.0,0.00011232,2]
[347364632,1735733456386,-585.02,0.00011232,2]
[347364633,1735733456395,-4066.71,0.00011232,2]
[347364634,1735733456405,-2626.63,0.00011232,2]
[347364635,1735733456416,-15730.92,0.00011232,2]
[347364636,1735733456426,-919.46,0.00011232,2]
[347364637,1735733456437,-2292.59,0.00011232,2]
[347364638,1735733456447,-500.0,0.00011232,2]
[347364639,1735733456456,-736.79,0.00011232,2]
[347364640,1735733456466,-500.0,0.00011232,2]
[347364641,1735733456476,-842.76,0.00011232,2]
[347364642,1735733456486,-500.0,0.00011232,2]
[347364643,1735733456496,-1753.94,0.00011232,2]
[347364644,1735733456505,-500.0,0.00011232,2]
[347364645,1735733456515,-500.0,0.00011232,2]
[347364646,1735733456525,-1902.96,0.00011232,2]
[347364647,1735733456534,-2132.29,0.00011232,2]
[347364648,1735733456544,-7634.29,0.00011232,2]
[347364649,1735733456554,-500.0,0.00011232,2]
[347364650,1735733456563,-2499.99,0.00011232,2]
[347364651,1735733456572,-500.0,0.00011232,2]
[347364652,1735733456585,-699.91,0.00011232,2]
[347364653,1735733456597,-1567.03,0.00011232,2]
[347364654,1735733456611,-500.0,0.00011232,2]
[347364655,1735733456624,-500.0,0.00011232,2]
[347364656,1735733456634,-500.0,0.00011232,2]
[347364657,1735733456645,-500.0,0.00011232,2]
[347364658,1735733456654,-1693.73,0.00011232,2]
[347364659,1735733456664,-500.0,0.00011232,2]
[347364660,1735733456675,-2040.2,0.00011232,2]
[347364661,1735733456686,-3646.33,0.00011232,2]
[347364662,1735733456695,-1281.73,0.00011232,2]
[347364663,1735733456704,-500.0,0.00011232,2]
[347364664,1735733456713,-500.0,0.00011232,2]
[347364665,1735733456722,-11866.44,0.00011232,2]
[347364666,1735733456732,-500.0,0.00011232,2]
[347364667,1735733456741,-500.0,0.00011232,2]
[347364668,1735733456751,-2135.29,0.00011232,2]
[347364669,1735733456761,-500.0,0.00011232,2]
[347364670,1735733456770,-500.0,0.00011232,2]
[347364671,1735733456779,-2754.28,0.00011232,2]
[347364672,1735733456788,-4424.4,0.00011232,2]
[347364673,1735733456798,-1432.89,0.00011232,2]
[347364674,1735733456807,-1240.17,0.00011232,2]
[347364675,1735733456816,-500.0,0.00011232,2]
[347364676,1735733456825,-1767.8,0.00011232,2]
[347364677,1735733456834,-500.0,0.00011232,2]
[347364678,1735733456843,-679.73,0.00011232,2]
[347364679,1735733456853,-7012.08,0.00011232,2]
[347364680,1735733456863,-1179.2,0.00011232,2]
[347364681,1735733456873,-500.0,0.00011232,2]
[347364682,1735733456882,-891.6,0.00011232,2]
[347364683,1735733456891,-500.0,0.00011232,2]
[347364684,1735733456901,-712.53,0.00011232,2]
[347364685,1735733456912,-2483.04,0.00011232,2]
[347364686,1735733456922,-1045.66,0.00011232,2]
[347364687,1735733456931,-4934.23,0.00011232,2]
[347364688,1735733456940,-1467.89,0.00011232,2]
[347364689,1735733456952,-500.0,0.00011232,2]
[347364690,1735733456961,-578.29,0.00011232,2]
[347364691,1735733456970,-1205.0,0.00011232,2]
[347364692,1735733456979,-1324.59,0.00011232,2]
[347364693,1735733456988,-500.0,0.00011232,2]
[347364694,1735733456997,-1800.38,0.00011232,2]
[347364695,1735733457007,-3118.74,0.00011232,2]
[347364696,1735733457016,-15969.58,0.00011232,2]
[347364697,1735733457025,-500.0,0.00011232,2]
[347364698,1735733457035,-784.73,0.00011232,2]
[347364699,1735733457044,-3369.38,0.00011232,2]
[347364700,1735733457053,-6176.7,0.00011232,2]
[347364701,1735733457062,-6415.35,0.00011232,2]
[347364702,1735733457071,-2206.22,0.00011232,2]
[347364703,1735733457080,-500.0,0.00011232,2]
[347364704,1735733457089,-1630.94,0.00011232,2]
[347364705,1735733457098,-6129.21,0.00011232,2]
[347364706,1735733457107,-500.0,0.00011232,2]
[347364707,1735733457116,-1397.52,0.00011232,2]
[347364708,1735733457125,-306.50521855,0.00011232,2]
[347364709,1735733457134,-1286.76,0.00011232,2]
[347364710,1735733457144,-15067.09,0.00011232,2]
[347364711,1735733457153,-500.0,0.00011232,2]
[347364712,1735733457162,-555.84,0.00011232,2]
[347364713,1735733457171,-2133.27,0.00011232,2]
[347364714,1735733457181,-723.31,0.00011232,2]
[347364715,1735733457190,-2938.08,0.00011232,2]
[347364716,1735733457199,-602.06,0.00011232,2]
[347364717,1735733457209,-728.93,0.00011232,2]
[347364718,1735733457218,-670.65,0.00011232,2]
[347364719,1735733457227,-2977.99,0.00011232,2]
[347364720,1735733457236,-8229.93,0.00011232,2]
[347364721,1735733457245,-500.0,0.00011232,2]
[347364722,1735733457254,-2356.83,0.00011232,2]
[347364723,1735733457263,-1541.47,0.00011232,2]
[347364724,1735733457273,-792.88,0.00011232,2]
[347364725,1735733457283,-500.0,0.00011232,2]
[347364726,1735733457292,-5429.89,0.00011232,2]
[347364727,1735733457301,-7148.25,0.00011232,2]
[347364728,1735733457310,-4986.68,0.00011232,2]
[347364729,1735733457319,-4308.11,0.00011232,2]
[347364730,1735733457329,-1693.01,0.00011232,2]
[347364731,1735733457338,-27280.99,0.00011232,2]
[347364732,1735733457348,-645.62,0.00011232,2]
[347364733,1735733457357,-214.25091213,0.00011232,2]
[347364734,1735733457367,-10901.57,0.00011232,2]
[347364735,1735733457377,-1289.01,0.00011232,2]
[347364736,1735733457387,-500.0,0.00011232,2]
[347364737,1735733457396,-993.29,0.00011232,2]
[347364738,1735733457405,-950.95,0.00011232,2]
[347364739,1735733457415,-55.52101401,0.00011232,2]
[347364740,1735733458311,9496.64,0.00010758,2]
[347364741,1735733458593,-957.08025307,0.00010758,2]
[347364742,1735733458606,-3456.99788779,0.00010758,2]
[347364743,1735733458618,-1863.17026,0.00010758,2]
[347364744,1735733458814,-1914.97410298,0.00010758,2]
[347364745,1735733458825,-52944.4471824,0.00010758,2]
[347364746,1735733458924,-698.669908,0.00010758,2]
[347364747,1735733458935,-519.65,0.00010758,2]
[347364748,1735733458947,-325.655,0.00010758,2]
[347364749,1735733458959,-324.22562728,0.00010758,2]
[347364750,1735733459800,-949.10442,0.00010758,2]
[347364751,1735733459812,-6430.25015589,0.00010758,2]
[347364752,1735733459832,-500.0,0.00010758,2]
[347364753,1735733460455,-2516.87912024,0.00010758,2]
[347364754,1735733460467,-133504.53778235,0.00010758,2]
[347364755,1735733460476,-1102.0,0.00011098,2]
[347364756,1735733460485,-531.60898599,0.00011232,2]
[347364757,1735733460495,-2622.62,0.00011232,2]
[347364758,1735733460504,-500.0,0.00011232,2]
[347364759,1735733460513,-525.63,0.00011232,2]
[347364760,1735733460522,-500.67,0.00011232,2]
[347364761,1735733460533,-1044.6,0.00011232,2]
[347364762,1735733460543,-2005.11,0.00011232,2]
[347364763,1735733460552,-2271.92,0.00011232,2]
[347364764,1735733460562,-686.04,0.00011232,2]
[347364765,1735733460572,-680.0,0.00011232,2]
[347364766,1735733460581,-15838.48,0.00011232,2]
[347364767,1735733460593,-500.0,0.00011232,2]
[347364768,1735733460602,-746.78323116,0.00011232,2]
[347364769,1735733460614,-281.6747362,0.00011232,2]
[347364770,1735733460625,-737.68203264,0.00011232,2]
[347364771,1735733460636,-3932.6213439,0.00011232,2]
[347364772,1735733460745,-1627.8986561,0.00011232,2]
[347364773,1735733460754,-500.0,0.00011232,2]
[347364774,1735733460765,-3145.46,0.00011232,2]
[347364775,1735733460774,-297.09588358,0.00011232,2]
[347364776,1735733460868,-461.57411642,0.00011232,2]
[347364777,1735733460878,-1516.26,0.00011232,2]
[347364778,1735733460888,-500.0,0.00011232,2]
[347364779,1735733460897,-1746.41,0.00011232,2]
[347364780,1735733460907,-1205.61,0.00011232,2]
[347364781,1735733460917,-5369.74,0.00011232,2]
[347364782,1735733460926,-618.84,0.00011232,2]
[347364783,1735733460935,-6404.72,0.00011232,2]
[347364784,1735733460944,-500.0,0.00011232,2]
[347364785,1735733460954,-3464.33,0.00011232,2]
[347364786,1735733460963,-7263.42,0.00011232,2]
[347364787,1735733460972,-500.0,0.00011232,2]
[347364788,1735733460982,-1763.77238636,0.00011232,2]
[347364789,1735733460993,-16549.11761364,0.00011232,2]
[347364790,1735733461003,-500.0,0.00011232,2]
[347364791,1735733461013,-500.0,0.00011232,2]
[347364792,1735733461022,-4038.19,0.00011232,2]
[347364793,1735733461032,-512.42,0.00011232,2]
[347364794,1735733461041,-500.0,0.00011232,2]
[347364795,1735733461050,-1982.93,0.00011232,2]
[347364796,1735733461059,-2053.02,0.00011232,2]
[347364797,1735733461068,-500.0,0.00011232,2]
[347364798,1735733461078,-4890.35,0.00011232,2]
[347364799,1735733461087,-611.45,0.00011232,2]
[347364800,1735733461096,-3591.15,0.00011232,2]
[347364801,1735733461105,-9992.12,0.00011232,2]
[347364802,1735733461115,-925.94,0.00011232,2]
[347364803,1735733461124,-1244.51,0.00011232,2]
[347364804,1735733461134,-1553.32,0.00011232,2]
[347364805,1735733461143,-897.28,0.00011232,2]
[347364806,1735733461152,-531.91,0.00011232,2]
[347364807,1735733461161,-710.75,0.00011232,2]
[347364808,1735733461171,-2140.6,0.00011232,2]
[347364809,1735733461180,-1914.42,0.00011232,2]
[347364810,1735733461190,-992.4,0.00011232,2]
[347364811,1735733461199,-1149.68,0.00011232,2]
[347364812,1735733461209,-850.52,0.00011232,2]
[347364813,1735733461218,-806.52,0.00011232,2]
[347364814,1735733461228,-677.49,0.00011232,2]
[347364815,1735733461237,-500.0,0.00011232,2]
[347364816,1735733461246,-538.44,0.00011232,2]
[347364817,1735733461256,-500.0,0.00011232,2]
[347364818,1735733461265,-3633.28,0.00011232,2]
[347364819,1735733461274,-7740.92,0.00011232,2]
[347364820,1735733461283,-6329.9,0.00011232,2]
[347364821,1735733461293,-163.735,0.00011267,2]
[347364822,1735733461302,-41990.84061232,0.00011297,7]
[347364823,1735733461311,-155.064,0.0001131,2]
[347364824,1735733461321,-150.0,0.00011317,2]
[347364825,1735733461330,-424.3022723,0.00011325,2]
[347364826,1735733461339,-150.0,0.00011368,2]
[347364827,1735733461348,-555.09,0.00011368,2]
[347364828,1735733461357,-871.7,0.0001137,2]
[347364829,1735733461366,-150.0,0.0001137,2]
[347364830,1735733461376,-978.7,0.0001137,2]
[347364831,1735733461386,-978.7,0.0001137,2]
[347364832,1735733461395,-646.0,0.0001137,2]
[347364833,1735733461404,-150.0,0.00011379,2]
[347364834,1735733461414,-163.51146114,0.00011406,2]
[347364835,1735733461423,-150.0,0.00011481,2]
[347364836,1735733461432,-150.0,0.00011505,2]
[347364837,1735733461442,-555.09,0.00011505,2]
[347364838,1735733461452,-10428.7,0.00011506,2]
[347364839,1735733461462,-500.0,0.00011506,2]
[347364840,1735733461471,-500.0,0.00011506,2]
[347364841,1735733461480,-5376.79,0.00011506,2]
[347364842,1735733461490,-500.0,0.00011506,2]
[347364843,1735733461499,-176.47547056,0.00011506,2]
[347364844,1735733461508,-3090.64,0.00011506,2]
[347364845,1735733461517,-500.0,0.00011506,2]
[347364846,1735733461526,-1995.19,0.00011506,2]
[347364847,1735733461536,-500.0,0.00011506,2]
[347364848,1735733461545,-500.0,0.00011506,2]
[347364849,1735733461554,-500.0,0.00011506,2]
[347364850,1735733461563,-4175.7,0.00011506,2]
[347364851,1735733461572,-500.0,0.00011506,2]
[347364852,1735733461582,-500.0,0.00011506,2]
[347364853,1735733461595,-500.0,0.00011506,2]
[347364854,1735733461604,-500.0,0.00011506,2]
[347364855,1735733461613,-12351.86,0.00011506,2]
[347364856,1735733461623,-500.0,0.00011506,2]
[347364857,1735733461633,-500.0,0.00011506,2]
[347364858,1735733461642,-500.0,0.00011506,2]
[347364859,1735733461652,-500.0,0.00011506,2]
[347364860,1735733461661,-539.97638807,0.00011506,2]
[347364861,1735733461671,-500.0,0.00011506,2]
[347364862,1735733461680,-500.0,0.00011506,2]
[347364863,1735733461689,-3201.55,0.00011506,2]
[347364864,1735733461699,-344.94,0.00011506,2]
[347364865,1735733461708,-500.0,0.00011506,2]
[347364866,1735733461719,-1725.24,0.00011506,2]
[347364867,1735733461728,-998.91,0.00011506,2]
[347364868,1735733461737,-606.7,0.00011506,2]
[347364869,1735733461746,-2829.88,0.00011506,2]
[347364870,1735733461756,-1342.49,0.00011506,2]
[347364871,1735733461765,-500.0,0.00011506,2]
[347364872,1735733461775,-662.79,0.00011506,2]
[347364873,1735733461784,-500.0,0.00011506,2]
[347364874,1735733461794,-500.0,0.00011506,2]
[347364875,1735733461803,-1567.5,0.00011506,2]
[347364876,1735733461812,-500.0,0.00011506,2]
[347364877,1735733461822,-548.64,0.00011506,2]
[347364878,1735733461831,-357.54783271,0.00011506,2]
[347364879,1735733461840,-500.0,0.00011506,2]
[347364880,1735733461849,-500.0,0.00011506,2]
[347364881,1735733461858,-2239.6,0.00011506,2]
[347364882,1735733461867,-500.0,0.00011506,2]
[347364883,1735733461876,-500.0,0.00011506,2]
[347364884,1735733461885,-574.38,0.00011506,2]
[347364885,1735733461894,-503.36,0.00011506,2]
[347364886,1735733461905,-657.8,0.00011506,2]
[347364887,1735733461915,-559.89,0.00011506,2]
[347364888,1735733461924,-961.39,0.00011506,2]
[347364889,1735733461933,-1331.85,0.00011506,2]
[347364890,1735733461942,-2339.2,0.00011506,2]
[347364891,1735733461953,-923.7,0.00011506,2]
[347364892,1735733461963,-500.0,0.00011506,2]
[347364893,1735733461972,-500.0,0.00011506,2]
[347364894,1735733461981,-500.0,0.00011506,2]
[347364895,1735733461990,-500.0,0.00011506,2]
[347364896,1735733461999,-500.0,0.00011506,2]
[347364897,1735733462008,-500.0,0.00011506,2]
[347364898,1735733462017,-721.02,0.00011506,2]
[347364899,1735733462027,-500.0,0.00011506,2]
[347364900,1735733462036,-500.0,0.00011506,2]
[347364901,1735733462045,-1459.42,0.00011506,2]
[347364902,1735733462054,-2274.2,0.00011506,2]
[347364903,1735733462064,-500.0,0.00011506,2]
[347364904,1735733462073,-500.0,0.00011506,2]
[347364905,1735733462083,-500.0,0.00011506,2]
[347364906,1735733462092,-724.14,0.00011506,2]
[347364907,1735733462102,-346.72236272,0.00011506,2]
[347364908,1735733462111,-500.0,0.00011506,2]
[347364909,1735733462120,-500.0,0.00011506,2]
[347364910,1735733462129,-500.0,0.00011506,2]
[347364911,1735733462138,-835.77,0.00011506,2]
[347364912,1735733462148,-2017.72,0.00011506,2]
[347364913,1735733462158,-500.0,0.00011506,2]
[347364914,1735733462167,-2144.98,0.00011506,2]
[347364915,1735733462176,-500.0,0.00011506,2]
[347364916,1735733462185,-1941.32,0.00011506,2]
[347364917,1735733462195,-717.16,0.00011506,2]
[347364918,1735733462205,-1659.2,0.00011506,2]
[347364919,1735733462214,-500.0,0.00011506,2]
[347364920,1735733462224,-500.0,0.00011506,2]
[347364921,1735733462233,-500.0,0.00011506,2]
[347364922,1735733462242,-500.0,0.00011506,2]
[347364923,1735733462251,-500.0,0.00011506,2]
[347364924,1735733462260,-916.67,0.00011506,2]
[347364925,1735733462269,-500.0,0.00011506,2]
[347364926,1735733462278,-521.13,0.00011506,2]
[347364927,1735733462287,-500.0,0.00011506,2]
[347364928,1735733462297,-500.0,0.00011506,2]
[347364929,1735733462306,-500.0,0.00011506,2]
[347364930,1735733462315,-802.12,0.00011506,2]
[347364931,1735733462324,-2013.33,0.00011506,2]
[347364932,1735733462333,-757.35,0.00011506,2]
[347364933,1735733462342,-1857.29,0.00011506,2]
[347364934,1735733462352,-545.14,0.00011506,2]
[347364935,1735733462362,-1838.25,0.00011506,2]
[347364936,1735733462371,-500.0,0.00011506,2]
[347364937,1735733462382,-926.77,0.00011506,2]
[347364938,1735733462391,-500.0,0.00011506,2]
[347364939,1735733462400,-500.0,0.00011506,2]
[347364940,1735733462410,-702.37,0.00011506,2]
[347364941,1735733462420,-500.0,0.00011506,2]
[347364942,1735733462431,-512.46,0.00011506,2]
[347364943,1735733462441,-500.0,0.00011506,2]
[347364944,1735733462451,-500.0,0.00011506,2]
[347364945,1735733462461,-520.8,0.00011506,2]
[347364946,1735733462471,-601.78,0.00011506,2]
[347364947,1735733462482,-653.39,0.00011506,2]
[347364948,1735733462492,-759.67,0.00011506,2]
[347364949,1735733462501,-2656.47,0.00011506,2]
[347364950,1735733462510,-2237.07,0.00011506,2]
[347364951,1735733462521,-1560.57,0.00011506,2]
[347364952,1735733462530,-500.0,0.00011506,2]
[347364953,1735733462539,-500.0,0.00011506,2]
[347364954,1735733462549,-775.66,0.00011506,2]
[347364955,1735733462558,-500.0,0.00011506,2]
[347364956,1735733462568,-1067.15,0.00011506,2]
[347364957,1735733462578,-500.0,0.00011506,2]
[347364958,1735733462587,-1533.01,0.00011506,2]
[347364959,1735733462599,-1277.27,0.00011506,2]
[347364960,1735733462608,-1404.98,0.00011506,2]
[347364961,1735733462617,-778.82,0.00011506,2]
[347364962,1735733462627,-421.6,0.00011506,2]
[347364963,1735733462636,-500.0,0.00011506,2]
[347364964,1735733462646,-559.64,0.00011506,2]
[347364965,1735733462655,-1974.55,0.00011506,2]
[347364966,1735733462666,-1704.08,0.00011506,2]
[347364967,1735733462675,-500.0,0.00011506,2]
[347364968,1735733462684,-6599.49,0.00011506,2]
[347364969,1735733462693,-896.77,0.00011506,2]
[347364970,1735733462703,-1126.31,0.00011506,2]
[347364971,1735733462712,-1013.12,0.00011506,2]
[347364972,1735733462721,-500.0,0.00011506,2]
[347364973,1735733462730,-500.0,0.00011506,2]
[347364974,1735733462739,-500.0,0.00011506,2]
[347364975,1735733462748,-531.81,0.00011506,2]
[347364976,1735733462758,-1545.9,0.00011506,2]
[347364977,1735733462767,-821.51,0.00011506,2]
[347364978,1735733462776,-1263.93,0.00011506,2]
[347364979,1735733462785,-1119.1,0.00011506,2]
[347364980,1735733462795,-559.24,0.00011506,2]
[347364981,1735733462804,-712.1,0.00011506,2]
[347364982,1735733462814,-500.0,0.00011506,2]
[347364983,1735733462824,-1963.9,0.00011506,2]
[347364984,1735733462833,-500.0,0.00011506,2]
[347364985,1735733462842,-4189.12,0.00011506,2]
[347364986,1735733462852,-500.0,0.00011506,2]
[347364987,1735733462861,-991.56,0.00011506,2]
[347364988,1735733462870,-1949.47,0.00011506,2]
[347364989,1735733462879,-1774.86,0.00011506,2]
[347364990,1735733462888,-500.0,0.00011506,2]
[347364991,1735733462898,-500.0,0.00011506,2]
[347364992,1735733462908,-2347.24,0.00011506,2]
[347364993,1735733462918,-1044.17,0.00011506,2]
[347364994,1735733462927,-941.42,0.00011506,2]
[347364995,1735733462936,-633.33,0.00011506,2]
[347364996,1735733462945,-1064.57,0.00011506,2]
[347364997,1735733462954,-11728.19,0.00011506,2]
[347364998,1735733462964,-500.0,0.00011506,2]
[347364999,1735733462973,-902.33,0.00011506,2]
[347365000,1735733462983,-500.0,0.00011506,2]
[347365001,1735733462993,-500.0,0.00011506,2]
[347365002,1735733463001,-582.88,0.00011506,2]
[347365003,1735733463010,-500.0,0.00011506,2]
[347365004,1735733463019,-1462.45,0.00011506,2]
[347365005,1735733463029,-608.26,0.00011506,2]
[347365006,1735733463266,-978.74,0.00011506,2]
[347365007,1735733463275,-616.34,0.00011506,2]
[347365008,1735733463285,-500.0,0.00011506,2]
[347365009,1735733463301,-500.0,0.00011506,2]
[347365010,1735733463310,-701.69,0.00011506,2]
[347365011,1735733463320,-555.74,0.00011506,2]
[347365012,1735733463330,-918.77,0.00011506,2]
[347365013,1735733463339,-500.0,0.00011506,2]
[347365014,1735733463349,-500.0,0.00011506,2]
[347365015,1735733463358,-2783.49496083,0.00011506,2]
[347365016,1735733602989,1000.0,0.00013,30]
[347365017,1735733990502,382.01,8.219e-05,2]
[347365024,1735734530521,400.58002364,0.0002,120]
[347365025,1735734539394,-1057.0,9.607e-05,2]
[347365026,1735734539416,-1057.0,9.607e-05,2]
[347365027,1735734539436,-195.99482047,9.758e-05,2]
[347365028,1735734539456,-1317.32,9.758e-05,2]
[347365029,1735734539477,-1057.0,9.918e-05,2]
[347365030,1735734539497,-1000.0,9.918e-05,2]
[347365031,1735734539517,-824.7859,9.96e-05,2]
[347365032,1735734539537,-250.0,9.961e-05,2]
[347365033,1735734539558,-1514.224426,0.0001006,2]
[347365034,1735734539580,-237.42,0.00010111,2]
[347365035,1735734539600,-199.62,0.00010137,2]
[347365036,1735734539621,-300.0,0.00010246,2]
[347365037,1735734539642,-607.62485353,0.00010247,2]
[347365038,1735734547772,-300.0,0.00010059,2]
[347365039,1735734547795,-2052.20514647,0.00010247,2]
[347365040,1735734558457,-153.92,0.00010302,2]
[347365041,1735734558478,-7493.87485353,0.00010317,2]
[347365042,1735734563169,-1379.69106665,0.00010202,2]
[347365043,1735734563190,-8620.30893335,0.00010317,2]
[347365044,1735734569288,-9680.81621312,0.00010317,2]
[347365045,1735734569310,-151.44,0.00010439,2]
[347365046,1735734569332,-167.74378688,0.0001044,2]
[347365047,1735734574252,-889.25621312,0.0001044,2]
[347365048,1735734574275,-715.634,0.0001044,2]
[347365049,1735734574297,-382.01,0.00010479,2]
[347365050,1735734574319,-8013.09978688,0.000105,2]
[347365051,1735734580370,-10000.0,0.000105,2]
[347365052,1735734585592,-10000.0,0.000105,2]
[347365053,1735734590203,-10000.0,0.000105,2]
[347365054,1735734599084,-5863.51981532,0.000105,2]
[347365055,1735734599106,-1000.0,0.00010574,2]
[347365056,1735734599128,-800.0,0.00010575,2]
[347365057,1735734599150,-500.0,0.00010575,2]
[347365058,1735734599174,-498.37,0.00010575,2]
[347365059,1735734599197,-490.58,0.00010575,2]
[347365060,1735734599221,-491.73,0.00010575,2]
[347365061,1735734599244,-355.80018468,0.00010575,2]
[347365062,1735734609578,-147.64981532,0.00010575,2]
[347365063,1735734609600,-200.0,0.00010621,2]
[347365064,1735734609622,-502.77,0.00010632,2]
[347365065,1735734609649,-195.99482047,0.000108,2]
[347365066,1735734609671,-8953.58536421,0.000108,2]
[347365067,1735734615611,-10000.0,0.000108,2]
[347365069,1735734619464,-507.75,0.000108,2]
[347365070,1735734619486,-9492.25,0.000108,2]
[347365071,1735734622894,-10000.0,0.000108,2]
[347365072,1735734626808,-10000.0,0.000108,2]
[347365073,1735734630752,-10000.0,0.000108,2]
[347365100,1735734631524,-1000.0,0.000108,2]
[347365102,1735734631537,-77523.75368555,0.000108,2]
[347365108,1735734631623,-4355.77606181,0.000108,2]
[347365109,1735734631685,-4998.34364676,0.000108,2]
[347365110,1735734631737,-746.82209386,0.000108,2]
[347365111,1735734631750,-3031.80401114,0.000108,2]
[347365112,1735734631761,-488.58248064,0.000108,2]
[347365113,1735734631776,-40901.64200386,0.000108,2]
[347365114,1735734631795,-713.2,0.000108,2]
[347365134,1735734634291,-10000.0,0.000108,2]
[347365136,1735734637471,-509.7,0.000108,2]
[347365137,1735734637481,-16840.32891724,0.000108,2]
[347365138,1735734637508,-10000.0,0.000108,2]
[347365139,1735734637635,-7213.81179416,0.000108,2]
[347365148,1735734641404,-10000.0,0.000108,2]
[347365161,1735734642831,-253740.09994077,0.000108,2]
[347365163,1735734642841,-150.0,0.00010825,2]
[347365165,1735734642850,-150.0,0.00010825,2]
[347365166,1735734642860,-150.0,0.00010825,2]
[347365167,1735734642869,-150.0,0.00010825,2]
[347365168,1735734642878,-164.95442977,0.00010858,2]
[347365169,1735734642888,-2234.6455,0.00010858,2]
[347365170,1735734642897,-183.4081,0.00010858,2]
[347365172,1735734642907,-5000.0,0.00010858,2]
[347365174,1735734642917,-6666.12302,0.00010878,2]
[347365176,1735734642925,-171.90945656,0.000109,2]
[347365177,1735734642935,-150.0,0.00010911,2]
[347365178,1735734642944,-504.29,0.00010957,2]